[Event "Titled Tuesday Blitz August 15 Early 2023"]
[White "Llanos, Guillermo"]
[Black "Kaminski, Victor"]
[WhiteFideId "100358"]
[BlackFideId "1131630"]
[WhiteElo "2399"]
[BlackElo "2276"]
[Result "1-0"]
[Round "11"]
[TimeControl "180+1"]
[Date "2023.08.15"]
[WhiteClock "0:00:20"]
[BlackClock "0:00:00"]
[Board "128"]

1. b3 {[%clk 0:03:00]}  Nc6 {[%clk 0:02:58]} 2. Bb2 {[%clk 0:02:59]}  d5 {[%clk 0:02:59]} 3. e3 {[%clk 0:02:59]}  Bf5 {[%clk 0:02:59]} 4. Nf3 {[%clk 0:02:58]}  Nf6 {[%clk 0:03:00]} 5. a3 {[%clk 0:02:48]}  e6 {[%clk 0:02:58]} 6. c4 {[%clk 0:02:47]}  a6 {[%clk 0:02:51]} 7. d4 {[%clk 0:02:44]}  Bd6 {[%clk 0:02:47]} 8. Nbd2 {[%clk 0:02:40]}  O-O {[%clk 0:02:46]} 9. Be2 {[%clk 0:02:36]}  Ne4 {[%clk 0:02:38]} 10. O-O {[%clk 0:02:35]}  h6 {[%clk 0:02:35]} 11. c5 {[%clk 0:02:34]}  Be7 {[%clk 0:02:33]} 12. Nxe4 {[%clk 0:02:29]}  Bxe4 {[%clk 0:02:31]} 13. Nd2 {[%clk 0:02:30]}  Bg6 {[%clk 0:02:30]} 14. b4 {[%clk 0:02:29]}  Bf6 {[%clk 0:02:29]} 15. f4 {[%clk 0:02:28]}  Ne7 {[%clk 0:02:22]} 16. Nf3 {[%clk 0:02:27]}  Nf5 {[%clk 0:02:22]} 17. Qd2 {[%clk 0:02:25]}  b6 {[%clk 0:02:19]} 18. Ne5 {[%clk 0:02:21]}  Bxe5 {[%clk 0:02:16]} 19. dxe5 {[%clk 0:02:06]}  bxc5 {[%clk 0:02:16]} 20. bxc5 {[%clk 0:02:06]}  Ne7 {[%clk 0:02:17]} 21. Bd4 {[%clk 0:01:58]}  Nc6 {[%clk 0:02:13]} 22. Ra2 {[%clk 0:01:55]}  Qd7 {[%clk 0:02:01]} 23. Rb2 {[%clk 0:01:54]}  Rfb8 {[%clk 0:02:01]} 24. Rxb8+ {[%clk 0:01:49]}  Rxb8 {[%clk 0:02:00]} 25. Bxa6 {[%clk 0:01:48]}  Ra8 {[%clk 0:01:59]} 26. Bb5 {[%clk 0:01:41]}  Rxa3 {[%clk 0:01:57]} 27. Qb2 {[%clk 0:01:37]}  Ra8 {[%clk 0:01:47]} 28. Ra1 {[%clk 0:01:36]}  Rxa1+ {[%clk 0:01:11]} 29. Qxa1 {[%clk 0:01:35]}  f5 {[%clk 0:01:00]} 30. exf6 {[%clk 0:01:34]}  gxf6 {[%clk 0:00:58]} 31. Bxf6 {[%clk 0:01:21]}  Kh7 {[%clk 0:00:48]} 32. Bh8 {[%clk 0:01:08]}  Be4 {[%clk 0:00:43]} 33. Bxc6 {[%clk 0:01:04]}  Qf7 {[%clk 0:00:36]} 34. Qf6 {[%clk 0:00:55]}  Qg8 {[%clk 0:00:34]} 35. g3 {[%clk 0:00:50]}  Qxh8 {[%clk 0:00:32]} 36. Qxh8+ {[%clk 0:00:41]}  Kxh8 {[%clk 0:00:33]} 37. Bd7 {[%clk 0:00:39]}  Bf5 {[%clk 0:00:28]} 38. Kf2 {[%clk 0:00:38]}  Kg7 {[%clk 0:00:25]} 39. Ke2 {[%clk 0:00:38]}  Kf6 {[%clk 0:00:23]} 40. Kd2 {[%clk 0:00:38]}  Be4 {[%clk 0:00:07]} 41. Kc3 {[%clk 0:00:36]}  e5 {[%clk 0:00:06]} 42. Ba4 {[%clk 0:00:32]}  c6 {[%clk 0:00:02]} 43. Kd2 {[%clk 0:00:27]}  d4 {[%clk 0:00:01]} 44. exd4 {[%clk 0:00:26]}  exd4 {[%clk 0:00:02]} 45. Bc2 {[%clk 0:00:24]}  Bd5 {[%clk 0:00:01]} 46. Bh7 {[%clk 0:00:23]}  Bc4 {[%clk 0:00:01]} 47. Be4 {[%clk 0:00:22]}  Bb5 {[%clk 0:00:00]} 48. g4 {[%clk 0:00:20]} 1-0


[Site "https://www.chess.com"]

[Event "Titled Tuesday Blitz August 15 Early 2023"]
[White "Vila Dupla, Aurelio"]
[Black "Pein, Jonathan"]
[WhiteFideId "2203383"]
[BlackFideId "417092"]
[WhiteElo "2125"]
[BlackElo "2427"]
[Result "0-1"]
[Round "11"]
[TimeControl "180+1"]
[Date "2023.08.15"]
[WhiteClock "0:00:00"]
[BlackClock "0:00:16"]
[Board "133"]

1. Nf3 {[%clk 0:03:00]}  d5 {[%clk 0:02:56]} 2. d4 {[%clk 0:03:00]}  Nc6 {[%clk 0:02:57]} 3. c4 {[%clk 0:03:00]}  Bf5 {[%clk 0:02:58]} 4. cxd5 {[%clk 0:02:59]}  Qxd5 {[%clk 0:02:57]} 5. Nc3 {[%clk 0:02:58]}  Qa5 {[%clk 0:02:58]} 6. d5 {[%clk 0:02:52]}  O-O-O {[%clk 0:02:57]} 7. Bd2 {[%clk 0:02:53]}  Nb4 {[%clk 0:02:57]} 8. Rc1 {[%clk 0:02:32]}  Nxd5 {[%clk 0:02:53]} 9. Qb3 {[%clk 0:02:24]}  Nxc3 {[%clk 0:02:37]} 10. Bxc3 {[%clk 0:02:24]}  Qd5 {[%clk 0:02:30]} 11. Qa4 {[%clk 0:01:35]}  Kb8 {[%clk 0:02:20]} 12. e3 {[%clk 0:01:35]}  Nf6 {[%clk 0:02:19]} 13. Bc4 {[%clk 0:01:34]}  Qd7 {[%clk 0:02:16]} 14. Qxd7 {[%clk 0:01:16]}  Rxd7 {[%clk 0:02:17]} 15. Bxf7 {[%clk 0:01:17]}  e6 {[%clk 0:02:17]} 16. Ne5 {[%clk 0:01:16]}  Rd8 {[%clk 0:02:00]} 17. f3 {[%clk 0:01:11]}  Bd6 {[%clk 0:01:59]} 18. e4 {[%clk 0:01:08]}  Bxe4 {[%clk 0:01:48]} 19. fxe4 {[%clk 0:00:50]}  Nxe4 {[%clk 0:01:49]} 20. Nf3 {[%clk 0:00:44]}  Nxc3 {[%clk 0:01:46]} 21. bxc3 {[%clk 0:00:43]}  g6 {[%clk 0:01:43]} 22. O-O {[%clk 0:00:38]}  e5 {[%clk 0:01:36]} 23. Rfd1 {[%clk 0:00:34]}  e4 {[%clk 0:01:35]} 24. Nd4 {[%clk 0:00:30]}  Bc5 {[%clk 0:01:25]} 25. Kh1 {[%clk 0:00:25]}  Rd6 {[%clk 0:01:24]} 26. Ne6 {[%clk 0:00:24]}  Ba3 {[%clk 0:01:11]} 27. Rxd6 {[%clk 0:00:20]}  cxd6 {[%clk 0:01:12]} 28. Rb1 {[%clk 0:00:18]}  Rc8 {[%clk 0:01:07]} 29. Rb3 {[%clk 0:00:15]}  e3 {[%clk 0:01:04]} 30. Nd4 {[%clk 0:00:12]}  Bc5 {[%clk 0:01:03]} 31. h3 {[%clk 0:00:10]}  Bxd4 {[%clk 0:01:02]} 32. cxd4 {[%clk 0:00:10]}  e2 {[%clk 0:01:02]} 33. Rb1 {[%clk 0:00:07]}  Rc2 {[%clk 0:00:49]} 34. Kh2 {[%clk 0:00:07]}  Kc7 {[%clk 0:00:41]} 35. Bd5 {[%clk 0:00:04]}  b5 {[%clk 0:00:35]} 36. Bf3 {[%clk 0:00:04]}  Rxa2 {[%clk 0:00:34]} 37. Re1 {[%clk 0:00:04]}  b4 {[%clk 0:00:25]} 38. Bxe2 {[%clk 0:00:04]}  a5 {[%clk 0:00:21]} 39. Bc4 {[%clk 0:00:04]}  Rc2 {[%clk 0:00:20]} 40. Bb3 {[%clk 0:00:04]}  Rc3 {[%clk 0:00:20]} 41. Ba4 {[%clk 0:00:05]}  Ra3 {[%clk 0:00:20]} 42. Be8 {[%clk 0:00:04]}  b3 {[%clk 0:00:19]} 43. Rc1+ {[%clk 0:00:04]}  Kd8 {[%clk 0:00:18]} 44. Bc6 {[%clk 0:00:03]}  b2 {[%clk 0:00:17]} 45. Rb1 {[%clk 0:00:03]}  Rb3 {[%clk 0:00:18]} 46. d5 {[%clk 0:00:03]}  Kc7 {[%clk 0:00:17]} 47. Ba4 {[%clk 0:00:03]}  Rb4 {[%clk 0:00:16]} 48. Bc6 {[%clk 0:00:03]}  Kb6 {[%clk 0:00:16]} 49. Bd7 {[%clk 0:00:03]}  Kc5 {[%clk 0:00:16]} 50. Bc6 {[%clk 0:00:04]}  a4 {[%clk 0:00:16]} 51. Bxa4 {[%clk 0:00:03]}  Kxd5 {[%clk 0:00:16]} 52. Rxb2 {[%clk 0:00:00]}  Rxb2 {[%clk 0:00:16]} 0-1


[Site "https://www.chess.com"]

[Event "Titled Tuesday Blitz August 15 Early 2023"]
[White "Nugumanov, Bakhtiyar"]
[Black "Iunusovnuriddin"]
[WhiteFideId "13701797"]
[WhiteElo "2109"]
[BlackElo "2296"]
[Result "1-0"]
[Round "11"]
[TimeControl "180+1"]
[Date "2023.08.15"]
[WhiteClock "0:00:13"]
[BlackClock "0:00:13"]
[Board "134"]

1. e4 {[%clk 0:03:00]}  e5 {[%clk 0:02:57]} 2. Nf3 {[%clk 0:03:00]}  Nc6 {[%clk 0:02:56]} 3. Bb5 {[%clk 0:03:00]}  a6 {[%clk 0:02:57]} 4. Ba4 {[%clk 0:03:00]}  Nf6 {[%clk 0:02:57]} 5. O-O {[%clk 0:02:59]}  b5 {[%clk 0:02:58]} 6. Bb3 {[%clk 0:02:59]}  Bb7 {[%clk 0:02:59]} 7. c3 {[%clk 0:02:57]}  Nxe4 {[%clk 0:02:58]} 8. Re1 {[%clk 0:02:46]}  d5 {[%clk 0:02:58]} 9. d3 {[%clk 0:02:46]}  Nc5 {[%clk 0:02:57]} 10. Nxe5 {[%clk 0:02:45]}  Nxe5 {[%clk 0:02:57]} 11. Rxe5+ {[%clk 0:02:45]}  Be7 {[%clk 0:02:58]} 12. Bc2 {[%clk 0:02:33]}  d4 {[%clk 0:02:57]} 13. Qe2 {[%clk 0:02:21]}  Ne6 {[%clk 0:02:38]} 14. Bb3 {[%clk 0:01:49]}  O-O {[%clk 0:02:15]} 15. Bxe6 {[%clk 0:01:16]}  fxe6 {[%clk 0:02:15]} 16. Nd2 {[%clk 0:01:09]}  Bd6 {[%clk 0:01:53]} 17. Rh5 {[%clk 0:00:58]}  g6 {[%clk 0:01:43]} 18. Rh3 {[%clk 0:00:49]}  Qg5 {[%clk 0:01:36]} 19. Ne4 {[%clk 0:00:44]}  Qe5 {[%clk 0:01:28]} 20. Bh6 {[%clk 0:00:31]}  Rf7 {[%clk 0:01:18]} 21. Re1 {[%clk 0:00:30]}  Rd8 {[%clk 0:01:03]} 22. f4 {[%clk 0:00:22]}  Qd5 {[%clk 0:00:41]} 23. Bg5 {[%clk 0:00:21]}  dxc3 {[%clk 0:00:34]} 24. Bxd8 {[%clk 0:00:18]}  Qd4+ {[%clk 0:00:25]} 25. Qe3 {[%clk 0:00:16]}  Qxe3+ {[%clk 0:00:23]} 26. Rhxe3 {[%clk 0:00:16]}  cxb2 {[%clk 0:00:20]} 27. Nxd6 {[%clk 0:00:14]}  cxd6 {[%clk 0:00:20]} 28. Rxe6 {[%clk 0:00:14]}  Rxf4 {[%clk 0:00:17]} 29. Bg5 {[%clk 0:00:13]}  Rb4 {[%clk 0:00:13]} 30. Re8+ {[%clk 0:00:13]} 1-0


[Site "https://www.chess.com"]

[Event "Titled Tuesday Blitz August 15 Early 2023"]
[White "Vaglio Munoz, Jaime"]
[Black "Saucey, Michel"]
[WhiteFideId "6500145"]
[BlackFideId "601845"]
[WhiteElo "2224"]
[BlackElo "2273"]
[Result "1-0"]
[Round "11"]
[TimeControl "180+1"]
[Date "2023.08.15"]
[WhiteClock "0:00:53"]
[BlackClock "0:00:43"]
[Board "135"]

1. e4 {[%clk 0:02:56]}  c5 {[%clk 0:02:59]} 2. a3 {[%clk 0:02:55]}  g6 {[%clk 0:02:58]} 3. b4 {[%clk 0:02:55]}  Bg7 {[%clk 0:02:58]} 4. c3 {[%clk 0:02:55]}  d5 {[%clk 0:02:48]} 5. d3 {[%clk 0:02:54]}  dxe4 {[%clk 0:02:47]} 6. dxe4 {[%clk 0:02:55]}  Qxd1+ {[%clk 0:02:46]} 7. Kxd1 {[%clk 0:02:56]}  Nf6 {[%clk 0:02:40]} 8. f3 {[%clk 0:02:55]}  O-O {[%clk 0:02:38]} 9. Be3 {[%clk 0:02:55]}  Nfd7 {[%clk 0:02:24]} 10. Kc2 {[%clk 0:02:47]}  Nc6 {[%clk 0:02:19]} 11. Ra2 {[%clk 0:02:46]}  b6 {[%clk 0:02:11]} 12. Nd2 {[%clk 0:02:45]}  Bb7 {[%clk 0:02:07]} 13. Nh3 {[%clk 0:02:42]}  Rac8 {[%clk 0:02:04]} 14. b5 {[%clk 0:02:41]}  Na5 {[%clk 0:01:59]} 15. c4 {[%clk 0:02:39]}  Ne5 {[%clk 0:01:42]} 16. Be2 {[%clk 0:02:33]}  Rfd8 {[%clk 0:01:41]} 17. Rd1 {[%clk 0:02:32]}  h5 {[%clk 0:01:25]} 18. Nf4 {[%clk 0:02:31]}  e6 {[%clk 0:01:23]} 19. h4 {[%clk 0:02:29]}  Rd7 {[%clk 0:01:16]} 20. Nh3 {[%clk 0:01:10]}  Rcd8 {[%clk 0:01:15]} 21. Bf4 {[%clk 0:01:10]}  Nd3 {[%clk 0:01:03]} 22. Bxd3 {[%clk 0:01:07]}  Rxd3 {[%clk 0:01:02]} 23. Nf2 {[%clk 0:00:58]}  Rc3+ {[%clk 0:01:02]} 24. Kb1 {[%clk 0:00:58]}  Nb3 {[%clk 0:01:00]} 25. Nxb3 {[%clk 0:00:56]}  Rxb3+ {[%clk 0:00:59]} 26. Kc2 {[%clk 0:00:56]}  Rxd1 {[%clk 0:00:43]} 27. Nxd1 {[%clk 0:00:53]} 1-0


[Site "https://www.chess.com"]

[Event "Titled Tuesday Blitz August 15 Early 2023"]
[White "Johnson, Ben"]
[Black "Fajdetic, Hrvoje"]
[WhiteFideId "2010917"]
[BlackFideId "14501945"]
[WhiteElo "2150"]
[BlackElo "2252"]
[Result "0-1"]
[Round "11"]
[TimeControl "180+1"]
[Date "2023.08.15"]
[WhiteClock "0:00:01"]
[BlackClock "0:00:07"]
[Board "140"]

1. Nf3 {[%clk 0:03:00]}  g6 {[%clk 0:02:58]} 2. e4 {[%clk 0:02:59]}  Bg7 {[%clk 0:02:58]} 3. d4 {[%clk 0:02:59]}  d6 {[%clk 0:02:57]} 4. Bc4 {[%clk 0:02:59]}  e6 {[%clk 0:02:52]} 5. Nc3 {[%clk 0:02:51]}  Ne7 {[%clk 0:02:52]} 6. Qe2 {[%clk 0:02:46]}  c6 {[%clk 0:02:51]} 7. Bg5 {[%clk 0:02:44]}  d5 {[%clk 0:02:49]} 8. Bd3 {[%clk 0:02:42]}  f6 {[%clk 0:02:43]} 9. Be3 {[%clk 0:02:38]}  a5 {[%clk 0:02:38]} 10. a4 {[%clk 0:02:35]}  Na6 {[%clk 0:02:37]} 11. O-O {[%clk 0:02:33]}  Nb4 {[%clk 0:02:36]} 12. Nd2 {[%clk 0:02:11]}  b6 {[%clk 0:02:33]} 13. exd5 {[%clk 0:01:57]}  exd5 {[%clk 0:02:27]} 14. Bf4 {[%clk 0:01:50]}  O-O {[%clk 0:02:24]} 15. Rae1 {[%clk 0:01:46]}  Nxd3 {[%clk 0:02:21]} 16. cxd3 {[%clk 0:01:39]}  Nf5 {[%clk 0:02:17]} 17. Nf3 {[%clk 0:01:37]}  Ba6 {[%clk 0:01:59]} 18. g4 {[%clk 0:01:29]}  Nh6 {[%clk 0:01:40]} 19. Nd2 {[%clk 0:01:07]}  Re8 {[%clk 0:01:37]} 20. Qf3 {[%clk 0:01:07]}  Qd7 {[%clk 0:01:29]} 21. h3 {[%clk 0:01:06]}  Rxe1 {[%clk 0:01:22]} 22. Rxe1 {[%clk 0:01:07]}  Re8 {[%clk 0:01:23]} 23. Re3 {[%clk 0:01:02]}  Rxe3 {[%clk 0:01:13]} 24. Qxe3 {[%clk 0:01:01]}  Nf7 {[%clk 0:01:12]} 25. Na2 {[%clk 0:00:49]}  Bf8 {[%clk 0:01:09]} 26. Nf3 {[%clk 0:00:40]}  Bd6 {[%clk 0:01:03]} 27. Bxd6 {[%clk 0:00:35]}  Nxd6 {[%clk 0:01:01]} 28. b4 {[%clk 0:00:32]}  axb4 {[%clk 0:00:57]} 29. Nxb4 {[%clk 0:00:31]}  Bb7 {[%clk 0:00:56]} 30. Kf1 {[%clk 0:00:25]}  Nf7 {[%clk 0:00:49]} 31. Qc1 {[%clk 0:00:16]}  Kg7 {[%clk 0:00:42]} 32. Ne1 {[%clk 0:00:14]}  h5 {[%clk 0:00:39]} 33. gxh5 {[%clk 0:00:13]}  Qxh3+ {[%clk 0:00:38]} 34. Ke2 {[%clk 0:00:12]}  Qxh5+ {[%clk 0:00:38]} 35. Kf1 {[%clk 0:00:11]}  Qh3+ {[%clk 0:00:35]} 36. Ke2 {[%clk 0:00:11]}  Qe6+ {[%clk 0:00:35]} 37. Kf1 {[%clk 0:00:11]}  Ng5 {[%clk 0:00:33]} 38. Ng2 {[%clk 0:00:09]}  Nh3 {[%clk 0:00:29]} 39. Qe3 {[%clk 0:00:06]}  Ng5 {[%clk 0:00:23]} 40. Nf4 {[%clk 0:00:05]}  Qxe3 {[%clk 0:00:22]} 41. fxe3 {[%clk 0:00:06]}  Kf7 {[%clk 0:00:22]} 42. Kf2 {[%clk 0:00:06]}  Ne6 {[%clk 0:00:21]} 43. Nc2 {[%clk 0:00:04]}  Nxf4 {[%clk 0:00:20]} 44. exf4 {[%clk 0:00:03]}  Ke6 {[%clk 0:00:19]} 45. Na1 {[%clk 0:00:04]}  Kf5 {[%clk 0:00:19]} 46. Ke3 {[%clk 0:00:03]}  Ba6 {[%clk 0:00:19]} 47. Nb3 {[%clk 0:00:03]}  g5 {[%clk 0:00:17]} 48. a5 {[%clk 0:00:04]}  gxf4+ {[%clk 0:00:16]} 49. Kf2 {[%clk 0:00:03]}  bxa5 {[%clk 0:00:15]} 50. Nxa5 {[%clk 0:00:04]}  Bb5 {[%clk 0:00:15]} 51. Kf3 {[%clk 0:00:03]}  Kg5 {[%clk 0:00:15]} 52. Ke2 {[%clk 0:00:02]}  Kg4 {[%clk 0:00:13]} 53. Nb3 {[%clk 0:00:02]}  Kg3 {[%clk 0:00:12]} 54. Nc5 {[%clk 0:00:02]}  f3+ {[%clk 0:00:11]} 55. Kf1 {[%clk 0:00:02]}  f2 {[%clk 0:00:08]} 56. Ne6 {[%clk 0:00:01]}  Bxd3# {[%clk 0:00:07]} 0-1


[Site "https://www.chess.com"]

[Event "Titled Tuesday Blitz August 15 Early 2023"]
[White "Ghosh, Chanchal Kumer"]
[Black "Kohler, Aran"]
[WhiteFideId "10201858"]
[BlackFideId "1002856"]
[WhiteElo "2146"]
[BlackElo "2244"]
[Result "1-0"]
[Round "11"]
[TimeControl "180+1"]
[Date "2023.08.15"]
[WhiteClock "0:00:59"]
[BlackClock "0:01:23"]
[Board "141"]

1. e4 {[%clk 0:03:00]}  c6 {[%clk 0:02:48]} 2. Nf3 {[%clk 0:03:00]}  g6 {[%clk 0:02:47]} 3. Nc3 {[%clk 0:03:01]}  Bg7 {[%clk 0:02:47]} 4. d4 {[%clk 0:03:02]}  d6 {[%clk 0:02:45]} 5. h3 {[%clk 0:03:02]}  Nd7 {[%clk 0:02:45]} 6. Be2 {[%clk 0:03:02]}  Qc7 {[%clk 0:02:44]} 7. Be3 {[%clk 0:03:00]}  Ngf6 {[%clk 0:02:43]} 8. O-O {[%clk 0:03:00]}  O-O {[%clk 0:02:43]} 9. Qd2 {[%clk 0:02:59]}  Re8 {[%clk 0:02:43]} 10. Bh6 {[%clk 0:02:56]}  Bh8 {[%clk 0:02:43]} 11. Rfe1 {[%clk 0:02:46]}  e5 {[%clk 0:02:41]} 12. Rad1 {[%clk 0:02:44]}  exd4 {[%clk 0:02:32]} 13. Nxd4 {[%clk 0:02:34]}  Nc5 {[%clk 0:02:29]} 14. Bf3 {[%clk 0:02:31]}  Be6 {[%clk 0:02:28]} 15. b4 {[%clk 0:02:26]}  Na6 {[%clk 0:02:24]} 16. a3 {[%clk 0:02:22]}  Rad8 {[%clk 0:02:22]} 17. Bg5 {[%clk 0:02:14]}  Rd7 {[%clk 0:02:21]} 18. Qf4 {[%clk 0:01:53]}  Qd8 {[%clk 0:02:05]} 19. b5 {[%clk 0:01:31]}  Nb8 {[%clk 0:01:59]} 20. Qh4 {[%clk 0:01:26]}  d5 {[%clk 0:01:36]} 21. e5 {[%clk 0:01:23]}  c5 {[%clk 0:01:33]} 22. Nxe6 {[%clk 0:01:19]}  Rxe6 {[%clk 0:01:33]} 23. exf6 {[%clk 0:01:19]}  d4 {[%clk 0:01:32]} 24. Rxe6 {[%clk 0:01:16]}  dxc3 {[%clk 0:01:31]} 25. Rxd7 {[%clk 0:01:10]}  Qxd7 {[%clk 0:01:31]} 26. Re7 {[%clk 0:01:07]}  Qxb5 {[%clk 0:01:26]} 27. Rxb7 {[%clk 0:01:07]}  Qe8 {[%clk 0:01:23]} 28. Re7 {[%clk 0:00:59]} 1-0


[Site "https://www.chess.com"]

[Event "Titled Tuesday Blitz August 15 Early 2023"]
[White "Larina, Maria"]
[Black "Sarkar, Justin"]
[WhiteFideId "24113182"]
[BlackFideId "2010011"]
[WhiteElo "2125"]
[BlackElo "2242"]
[Result "1-0"]
[Round "11"]
[TimeControl "180+1"]
[Date "2023.08.15"]
[WhiteClock "0:00:10"]
[BlackClock "0:00:00"]
[Board "142"]

1. e4 {[%clk 0:03:00]}  c5 {[%clk 0:02:54]} 2. Nc3 {[%clk 0:03:00]}  Nc6 {[%clk 0:02:52]} 3. g3 {[%clk 0:03:00]}  h5 {[%clk 0:02:43]} 4. Nf3 {[%clk 0:02:58]}  g6 {[%clk 0:02:39]} 5. Bg2 {[%clk 0:02:58]}  Bg7 {[%clk 0:02:37]} 6. d3 {[%clk 0:02:57]}  d6 {[%clk 0:02:36]} 7. Bg5 {[%clk 0:02:55]}  Nf6 {[%clk 0:02:13]} 8. Qd2 {[%clk 0:02:53]}  Rb8 {[%clk 0:01:54]} 9. a4 {[%clk 0:02:47]}  a6 {[%clk 0:01:52]} 10. O-O {[%clk 0:02:45]}  b5 {[%clk 0:01:51]} 11. axb5 {[%clk 0:02:46]}  axb5 {[%clk 0:01:51]} 12. Nd5 {[%clk 0:02:32]}  Nxd5 {[%clk 0:01:31]} 13. exd5 {[%clk 0:02:33]}  Ne5 {[%clk 0:01:31]} 14. Nxe5 {[%clk 0:02:31]}  Bxe5 {[%clk 0:01:30]} 15. c3 {[%clk 0:02:28]}  O-O {[%clk 0:01:20]} 16. Bh6 {[%clk 0:02:22]}  Bg7 {[%clk 0:01:16]} 17. Bxg7 {[%clk 0:02:22]}  Kxg7 {[%clk 0:01:16]} 18. d4 {[%clk 0:02:21]}  c4 {[%clk 0:01:04]} 19. Rfe1 {[%clk 0:02:10]}  Qc7 {[%clk 0:00:40]} 20. Qg5 {[%clk 0:02:05]}  f6 {[%clk 0:00:25]} 21. Qe3 {[%clk 0:02:01]}  Kf7 {[%clk 0:00:23]} 22. Qh6 {[%clk 0:01:37]}  Rg8 {[%clk 0:00:20]} 23. Re2 {[%clk 0:01:28]}  Bg4 {[%clk 0:00:18]} 24. Re3 {[%clk 0:00:58]}  g5 {[%clk 0:00:09]} 25. Qh7+ {[%clk 0:00:57]}  Rg7 {[%clk 0:00:08]} 26. Qe4 {[%clk 0:00:53]}  Qd7 {[%clk 0:00:07]} 27. Rae1 {[%clk 0:00:50]}  Re8 {[%clk 0:00:04]} 28. Qc2 {[%clk 0:00:45]}  Bf5 {[%clk 0:00:04]} 29. Qe2 {[%clk 0:00:43]}  h4 {[%clk 0:00:02]} 30. Qd2 {[%clk 0:00:15]}  hxg3 {[%clk 0:00:02]} 31. fxg3 {[%clk 0:00:13]}  Rh7 {[%clk 0:00:02]} 32. Bf3 {[%clk 0:00:12]}  Bg4 {[%clk 0:00:01]} 33. Bxg4 {[%clk 0:00:11]}  Qxg4 {[%clk 0:00:01]} 34. Qf2 {[%clk 0:00:10]}  Qd7 {[%clk 0:00:01]} 35. Qe2 {[%clk 0:00:10]}  Kf8 {[%clk 0:00:00]} 36. Rf1 {[%clk 0:00:10]} 1-0


[Site "https://www.chess.com"]

[Event "Titled Tuesday Blitz August 15 Early 2023"]
[White "Clawitter, Craig"]
[Black "Stangl, Anita, Dr."]
[WhiteFideId "2023105"]
[BlackFideId "4608801"]
[WhiteElo "2237"]
[BlackElo "2114"]
[Result "1-0"]
[Round "11"]
[TimeControl "180+1"]
[Date "2023.08.15"]
[WhiteClock "0:01:23"]
[BlackClock "0:01:30"]
[Board "143"]

1. e4 {[%clk 0:03:00]}  e6 {[%clk 0:03:00]} 2. d4 {[%clk 0:03:00]}  d5 {[%clk 0:02:59]} 3. e5 {[%clk 0:03:01]}  c5 {[%clk 0:02:58]} 4. c3 {[%clk 0:03:01]}  Nc6 {[%clk 0:02:58]} 5. Nf3 {[%clk 0:03:02]}  Qb6 {[%clk 0:02:58]} 6. a3 {[%clk 0:03:02]}  cxd4 {[%clk 0:02:58]} 7. cxd4 {[%clk 0:03:03]}  f6 {[%clk 0:02:59]} 8. Bd3 {[%clk 0:02:56]}  fxe5 {[%clk 0:02:58]} 9. dxe5 {[%clk 0:02:56]}  g6 {[%clk 0:02:59]} 10. h4 {[%clk 0:02:54]}  Bg7 {[%clk 0:02:59]} 11. h5 {[%clk 0:02:54]}  gxh5 {[%clk 0:02:57]} 12. Nc3 {[%clk 0:02:48]}  Bd7 {[%clk 0:02:52]} 13. Na4 {[%clk 0:02:41]}  Qc7 {[%clk 0:02:51]} 14. Bf4 {[%clk 0:02:37]}  O-O-O {[%clk 0:02:48]} 15. Rc1 {[%clk 0:02:34]}  Rf8 {[%clk 0:02:47]} 16. Bg3 {[%clk 0:02:28]}  Nge7 {[%clk 0:02:35]} 17. b4 {[%clk 0:02:23]}  a6 {[%clk 0:02:29]} 18. Nc5 {[%clk 0:02:10]}  Ng6 {[%clk 0:02:23]} 19. Rxh5 {[%clk 0:01:48]}  Kb8 {[%clk 0:01:52]} 20. Bxa6 {[%clk 0:01:46]}  b6 {[%clk 0:01:46]} 21. Nxd7+ {[%clk 0:01:40]}  Qxd7 {[%clk 0:01:46]} 22. Qa4 {[%clk 0:01:25]}  Ncxe5 {[%clk 0:01:30]} 23. Qxd7 {[%clk 0:01:23]} 1-0


[Site "https://www.chess.com"]

[Event "Titled Tuesday Blitz August 15 Early 2023"]
[White "Mesa Cruz, Juan Carlos"]
[Black "Souza Neves, Andrey M."]
[WhiteFideId "6423400"]
[BlackFideId "2101815"]
[WhiteElo "2411"]
[BlackElo "2121"]
[Result "1/2-1/2"]
[Round "11"]
[TimeControl "180+1"]
[Date "2023.08.15"]
[WhiteClock "0:00:16"]
[BlackClock "0:00:05"]
[Board "146"]

1. Nf3 {[%clk 0:03:00]}  d5 {[%clk 0:02:17]} 2. g3 {[%clk 0:03:00]}  g6 {[%clk 0:02:15]} 3. Bg2 {[%clk 0:02:59]}  Bg7 {[%clk 0:02:15]} 4. O-O {[%clk 0:03:00]}  e5 {[%clk 0:02:15]} 5. d3 {[%clk 0:02:57]}  Nc6 {[%clk 0:02:12]} 6. c4 {[%clk 0:02:54]}  d4 {[%clk 0:02:10]} 7. b4 {[%clk 0:02:38]}  Nxb4 {[%clk 0:02:06]} 8. Qa4+ {[%clk 0:02:37]}  Nc6 {[%clk 0:02:05]} 9. Nxe5 {[%clk 0:02:38]}  Bxe5 {[%clk 0:02:03]} 10. Bxc6+ {[%clk 0:02:38]}  bxc6 {[%clk 0:02:02]} 11. Qxc6+ {[%clk 0:02:38]}  Bd7 {[%clk 0:02:02]} 12. Qe4 {[%clk 0:02:38]}  f6 {[%clk 0:01:41]} 13. f4 {[%clk 0:02:36]}  Bf5 {[%clk 0:01:37]} 14. Qc6+ {[%clk 0:02:30]}  Bd7 {[%clk 0:01:35]} 15. Qd5 {[%clk 0:02:14]}  Bd6 {[%clk 0:01:32]} 16. c5 {[%clk 0:02:10]}  Ne7 {[%clk 0:01:26]} 17. Qxd4 {[%clk 0:02:07]}  Nf5 {[%clk 0:01:23]} 18. Qe4+ {[%clk 0:02:03]}  Be7 {[%clk 0:01:21]} 19. c6 {[%clk 0:02:02]}  Bc8 {[%clk 0:01:18]} 20. Bb2 {[%clk 0:02:02]}  O-O {[%clk 0:01:14]} 21. Nd2 {[%clk 0:01:58]}  Kg7 {[%clk 0:01:09]} 22. Qc4 {[%clk 0:01:33]}  a5 {[%clk 0:00:58]} 23. Rf3 {[%clk 0:01:27]}  Ba6 {[%clk 0:00:56]} 24. Qe6 {[%clk 0:01:27]}  Qd6 {[%clk 0:00:50]} 25. Qxd6 {[%clk 0:01:20]}  Bxd6 {[%clk 0:00:49]} 26. e4 {[%clk 0:01:16]}  Bc5+ {[%clk 0:00:47]} 27. Kg2 {[%clk 0:01:12]}  Nd4 {[%clk 0:00:46]} 28. Rc1 {[%clk 0:00:51]}  Nxf3 {[%clk 0:00:43]} 29. Kxf3 {[%clk 0:00:45]}  Bb6 {[%clk 0:00:36]} 30. g4 {[%clk 0:00:43]}  Rad8 {[%clk 0:00:35]} 31. Rc3 {[%clk 0:00:23]}  Bd4 {[%clk 0:00:34]} 32. Rb3 {[%clk 0:00:23]}  Bxb2 {[%clk 0:00:33]} 33. Rxb2 {[%clk 0:00:23]}  Rxd3+ {[%clk 0:00:33]} 34. Kf2 {[%clk 0:00:24]}  Rfd8 {[%clk 0:00:31]} 35. Nb3 {[%clk 0:00:24]}  a4 {[%clk 0:00:28]} 36. Nc5 {[%clk 0:00:25]}  Rd2+ {[%clk 0:00:27]} 37. Rxd2 {[%clk 0:00:23]}  Rxd2+ {[%clk 0:00:26]} 38. Ke3 {[%clk 0:00:23]}  Re2+ {[%clk 0:00:20]} 39. Kf3 {[%clk 0:00:23]}  Bb5 {[%clk 0:00:17]} 40. Ne6+ {[%clk 0:00:23]}  Kf7 {[%clk 0:00:15]} 41. Nxc7 {[%clk 0:00:24]}  Bc4 {[%clk 0:00:14]} 42. Nd5 {[%clk 0:00:23]}  Bxd5 {[%clk 0:00:11]} 43. Kxe2 {[%clk 0:00:17]}  Bxc6 {[%clk 0:00:11]} 44. Kd3 {[%clk 0:00:17]}  Ke7 {[%clk 0:00:11]} 45. Kd4 {[%clk 0:00:17]}  h5 {[%clk 0:00:09]} 46. gxh5 {[%clk 0:00:17]}  gxh5 {[%clk 0:00:09]} 47. e5 {[%clk 0:00:16]}  f5 {[%clk 0:00:09]} 48. Kc5 {[%clk 0:00:15]}  Be4 {[%clk 0:00:09]} 49. a3 {[%clk 0:00:14]}  Ke6 {[%clk 0:00:07]} 50. h4 {[%clk 0:00:15]}  Bc2 {[%clk 0:00:06]} 51. Kd4 {[%clk 0:00:15]}  Bb3 {[%clk 0:00:05]} 52. Kc5 {[%clk 0:00:15]}  Bd1 {[%clk 0:00:05]} 53. Kd4 {[%clk 0:00:15]}  Kd7 {[%clk 0:00:05]} 54. Kc5 {[%clk 0:00:15]}  Bb3 {[%clk 0:00:05]} 55. Kb6 {[%clk 0:00:15]}  Ke6 {[%clk 0:00:05]} 56. Kc5 {[%clk 0:00:15]}  Ke7 {[%clk 0:00:06]} 57. Kc6 {[%clk 0:00:15]}  Ke6 {[%clk 0:00:05]} 58. Kc5 {[%clk 0:00:16]} 1/2-1/2


[Site "https://www.chess.com"]